Workbook

Sheet Portada (hidden)
E2: REMUNERACIONES MENSUALES
D4: Nombre/ Razón Social | E4: NUBOX
D5: RUT | E5: 11.111.111-1
D6: Representante Legal | E6: Alexander Russo
D7: C.I. Representante Legal | E7: 1.111.111-1
D8: Contador | E8: Dayana Huala
D9: C.I. Contador | E9: 1.111.111-1
D10: Mes | E10: Marzo
D11: Año Comercial | E11: 2021
B16: Ingresar Información de la Liquidación de Sueldo
D20: N°
D21: Nombre
D22: R.U.T
D23: Fecha de Ingreso
D24: Cargo
B25: SELECCIONAR DE LA LISTA DESPLEGABLE | D25: Tipo de Contrato
D26: Sistema de Salud
D27: Nombre AFP
D28: Días Trabajados
D29: Sueldo Base | H29: DATO PRIMORDIAL PARA EL CÁLCULO DE LAS REMUNERACIONES
A30: CÁLCULO AUTOMÁTICO | D30: Gratificación Legal | E30: =+E29*25% -> 0
D31: Horas Extras | E31: 0
D32: Horas Sábado | E32: 0
D33: Horas Feriados | E33: 0 | H33: INGRESO MANUAL
D34: Horas Menos | E34: 0
D35: Bonos Imponibles | E35: 0
A36: CÁLCULO AUTOMÁTICO | D36: Total Imponible | E36: =+E29+E30+E31+E32+E33+E34+E35 -> 0
D37: Bono Movilización
D38: Bono Colación
D39: Bono Desgaste de Herramientas | E39: 0 | H39: INGRESO MANUAL
D40: Bono Perdida de Caja | E40: 0
D41: Asignación Familiar | E41: 0
D42: Total Haber | E42: =+E36+E37+E38+E39+E40+E41 -> 0
D43: AFP | E43: =+E36*10.77% -> 0 | H43: INGRESAR INDICADORES SEGÚN CORRESPONDA AFP/SALUD /SEGURO DE CESANTÍA
D44: Salud | E44: =+E36*7% -> 0
D45: Seguro de Cesantía | E45: =+E36*0.6% -> 0
A46: CALCULO AUTOMÁTICO | D46: Total Descuentos | E46: =+E43+E44+E45 -> 0
D47: Alcance Líquido | E47: =+E42-E46 -> 0
D48: Anticipo de Sueldos
D49: Sueldo Líquido | E49: =+E47-E48 -> 0
D50: 2,4% Aporte Empleador Seguro de cesantía | E50: =+E36*2.4% -> 0 | H50: INGRESAR INDICADORES SEGÚN CORRESPONDA APORTE EMPLEADOR 2,4% / ACC DE ACUERDO AL ACCIDENTE DEL TRABAJO PACTADA (0,95%)
D51: 0,95 % ACC. | E51: =+E36*0.95% -> 0

Sheet Centralización (hidden)
F2: CENTRALIZACIÓN DE REMUNERACIONES
D3: Nombre/ Razón Social | F3: =+Portada!E4:J4 -> 0
D4: RUT | F4: =+Portada!E5:J5 -> 0
D5: Representante Legal | F5: =+Portada!E6:J6 -> 0
D6: C.I. Representante Legal | F6: =+Portada!E7:J7 -> 0
D7: Contador | F7: =+Portada!E8:J8 -> 0
D8: C.I. Contador | F8: =+Portada!E9:J9 -> 0
D9: Mes | F9: =+Portada!E10:J10 -> 0
D10: Año Comercial | F10: =+Portada!E11:J11 -> 0
C13: N° de Cuenta | D13: Nombre de Cuenta | E13: Debe | F13: Haber
C14: 3103001 | D14: Remuneraciones | E14: =+'Libro de Remuneraciones'!S121 -> 1000000
C15: 3103016 | D15: Movilización | E15: =+'Libro de Remuneraciones'!T121 -> 180000
C16: 3103015 | D16: Colación | E16: =+'Libro de Remuneraciones'!$U$121 -> 180000
C17: 3103018 | D17: Desgaste de Herramientas | E17: =+'Libro de Remuneraciones'!V121 -> 0
C18: 3103019 | D18: Pérdida de Caja | E18: =+'Libro de Remuneraciones'!W121 -> 0
C19: 3103020 | D19: Asignación Familiar | E19: =+'Libro de Remuneraciones'!X121 -> 0
C20: 3103007 | D20: Aporte Patronal | E20: =+'Libro de Remuneraciones'!AG121 -> 24000
C21: 3103018 | D21: Acc. Trabajo | E21: =+'Libro de Remuneraciones'!AH121 -> 9500
C22: 2107000 | D22: Anticipo de Suelo | F22: =+'Libro de Remuneraciones'!AE121 -> 1100
C23: 2107001 | D23: AFP X Pagar | F23: =+'Libro de Remuneraciones'!Z121 -> 107700
C24: 2107002 | D24: Salud X Pagar | F24: =+'Libro de Remuneraciones'!AA121 -> 70000
C25: 2108003 | D25: Aporte Patronal X Pagar | F25: =+'Libro de Remuneraciones'!AG121 -> 24000
C26: 2108001 | D26: Seguro de Cesantía X Pagar | F26: =+'Libro de Remuneraciones'!AB121 -> 6000
C27: 2107003 | D27: Acc. Trabajo X pagar | F27: =+'Libro de Remuneraciones'!AH121 -> 9500
C28: 2106001 | D28: Sueldos X Pagar | F28: =+'Libro de Remuneraciones'!AF121 -> 1175200
E29: =SUM(E14:E28) -> 1393500 | F29: =SUM(F14:F28) -> 1393500

Sheet Libro de Remuneraciones (hidden)
F2: LIBRO DE REMUNERACIONES
D3: Nombre/ Razón Social | F3: =+Portada!E4:J4 -> 0
D4: RUT | F4: =+Portada!E5:J5 -> 0
D5: Representante Legal | F5: =+Portada!E6:J6 -> 0
D6: C.I. Representante Legal | F6: =+Portada!E7:J7 -> 0
D7: Contador | F7: =+Portada!E8:J8 -> 0
D8: C.I. Contador | F8: =+Portada!E9:J9 -> 0
D9: Mes | F9: =+Portada!E10:J10 -> 0
D10: Año Comercial | F10: =+Portada!E11:J11 -> 0
C13: N° | D13: Nombre | E13: R.U.T | F13: Fecha de Ingreso | G13: Cargo | H13: Tipo de Contrato | I13: Sistema de Salud | J13: Nombre AFP | K13: Días Trabajados | L13: Sueldo Base | M13: Gratificación Legal | N13: Horas Extras | O13: Horas Sábado | P13: Horas Feriados | Q13: Horas Menos | R13: Bonos Imponibles | S13: Total Imponible | T13: Bono Movilización | U13: Bono Colación | V13: Bono Desgaste de Herramientas | W13: Bono Perdida de Caja | X13: Asignación Familiar | Y13: Total Haber | Z13: AFP | AA13: Salud | AB13: Seguro de Cesantía | AC13: Total Descuentos | AD13: Alcance Líquido | AE13: Anticipo de Sueldos | AF13: Sueldo Líquido | AG13: 2,4% Aporte Empleador Seguro de cesantía | AH13: 0,95 % ACC.
C14: 1 | D14: Jose Pino | E14: 22.222.222-2 | F14: 2020-01-01 | G14: Analista Contable | H14: Plazo Fijo | I14: Fonasa | J14: Modelo | K14: 30 | L14: 200000 | M14: =+L14*25% -> 50000 | N14: 0 | O14: 0 | P14: 0 | Q14: 0 | R14: 0 | S14: =+L14+M14+N14+O14+P14+Q14+R14 -> 250000 | T14: 60000 | U14: 60000 | V14: 0 | W14: 0 | X14: 0 | Y14: =+S14+T14+U14+V14+W14+X14 -> 370000 | Z14: =+S14*10.77% -> 26925 | AA14: =+S14*7% -> 17500 | AB14: =+S14*0.6% -> 1500 | AC14: =+Z14+AA14+AB14 -> 45925 | AD14: =+Y14-AC14 -> 324075 | AE14: 500 | AF14: =+AD14-AE14 -> 323575 | AG14: =+S14*2.4% -> 6000 | AH14: =+S14*0.95% -> 2375
C15: 2 | D15: Ana Rojas | E15: 33.333.333-3 | F15: 2015-02-01 | G15: Contadora | H15: Plazo Indefinido | I15: Fonasa | J15: Cuprum | K15: 30 | L15: 300000 | M15: =+L15*25% -> 75000 | N15: 0 | O15: 0 | P15: 0 | Q15: 0 | R15: 0 | S15: =+L15+M15+N15+O15+P15+Q15+R15 -> 375000 | T15: 60000 | U15: 60000 | V15: 0 | W15: 0 | X15: 0 | Y15: =+S15+T15+U15+V15+W15+X15 -> 495000 | Z15: =+S15*10.77% -> 40387.5 | AA15: =+S15*7% -> 26250 | AB15: =+S15*0.6% -> 2250 | AC15: =+Z15+AA15+AB15 -> 68887.5 | AD15: =+Y15-AC15 -> 426112.5 | AE15: 300 | AF15: =+AD15-AE15 -> 425812.5 | AG15: =+S15*2.4% -> 9000 | AH15: =+S15*0.95% -> 3562.5
C16: 3 | D16: Ana Lira | E16: 33.333.333-3 | F16: 2015-02-01 | G16: Contadora | H16: Plazo Indefinido | I16: Fonasa | J16: Cuprum | K16: 30 | L16: 300000 | M16: =+L16*25% -> 75000 | N16: 0 | O16: 0 | P16: 0 | Q16: 0 | R16: 0 | S16: =+L16+M16+N16+O16+P16+Q16+R16 -> 375000 | T16: 60000 | U16: 60000 | V16: 0 | W16: 0 | X16: 0 | Y16: =+S16+T16+U16+V16+W16+X16 -> 495000 | Z16: =+S16*10.77% -> 40387.5 | AA16: =+S16*7% -> 26250 | AB16: =+S16*0.6% -> 2250 | AC16: =+Z16+AA16+AB16 -> 68887.5 | AD16: =+Y16-AC16 -> 426112.5 | AE16: 300 | AF16: =+AD16-AE16 -> 425812.5 | AG16: =+S16*2.4% -> 9000 | AH16: =+S16*0.95% -> 3562.5
L121: =SUM(L14:L120) -> 800000 | M121: =SUM(M14:M120) -> 200000 | N121: 0 | O121: 0 | P121: 0 | Q121: 0 | R121: 0 | S121: 1000000 | T121: 180000 | U121: 180000 | V121: 0 | W121: 0 | X121: 0 | Y121: 1360000 | Z121: 107700 | AA121: 70000 | AB121: 6000 | AC121: 183700 | AD121: 1176300 | AE121: =SUM(AE14:AE120) -> 1100 | AF121: =SUM(AF14:AF120) -> 1175200 | AG121: 24000 | AH121: 9500

Sheet Resumen
E2: ANÁLISIS DEL GASTO DE REMUNERACIONES
D3: Nombre/ Razón Social | E3: =+Portada!E4:J4 -> NUBOX
D4: RUT | E4: =+Portada!E5:J5 -> 11.111.111-1
D5: Representante Legal | E5: =+Portada!E6:J6 -> Alexander Russo
D6: C.I. Representante Legal | E6: =+Portada!E7:J7 -> 1.111.111-1
D7: Contador | E7: =+Portada!E8:J8 -> Dayana Huala
D8: C.I. Contador | E8: =+Portada!E9:J9 -> 1.111.111-1
D9: Mes | E9: =+Portada!E10:J10 -> Marzo
D10: Año Comercial | E10: =+Portada!E11:J11 -> 2021
D13: DESCRIPCIÓN | E13: MONTOS
D15: N° Trabajadadores | E15: =COUNT('Libro de Remuneraciones'!C14:C120) -> 3
D16: Monto Líquido a Pagar | E16: =+Centralización!F28 -> 1175200
D17: Gastos Obligaciones Previsionales | E17: =+'Libro de Remuneraciones'!AC121+'Libro de Remuneraciones'!AG121+'Libro de Remuneraciones'!AH121 -> 217200
E18: =+E16+E17 -> 1392400

Sheet instructivo (hidden)
C10: Notas iniciales
B11: **Al abrir este archivo, recuerda habilitar el contenido para macros.
B15: ** Verificar las opciones avanzadas de tu excel para acceder al formato de trabajo de esta plantilla (Visual Basic).
B17: **Para guardar el archivo en el computador de trabajo, se debe guardar como documento habilitado para macros.
B19: **Al guardar el documento aparecerá este mensaje, el cual deberás aceptar para respetar fórmulas.
B26: **Al abrir el documento se desplegará este mensaje. Haz clic en no actualizar, para mantener fórmulas
B32: **Recuerda revisar todos los mensajes de ayuda y alerta en las páginas dinámicas con las que se trabajarán en este libro.
B34: Ver vídeo explicativo | D34: aquí

Sheet Hoja1 (hidden)
K4: AFP | L4: TASA COTIZACIÓN OBLIGATORIO AFP
B5: Enero | D5: Plazo Fijo | F5: Fonasa | H5: Capital | L5: TASA AFP TRABAJADORES
B6: Febrero | D6: Plazo Indefinido | F6: Isapre | H6: Cuprum | L6: DEPENDIENTES | N6: INDEPENDIENTES
B7: Marzo | D7: Part Time | H7: Habitat | L7: TASA AFP | M7: SIS (1) (2) | N7: TASA AFP (3)
B8: Abril | D8: Vinculo Laboral | H8: Modelo | K8: Capital | L8: 0.1144 | M8: 0.0194 | N8: 0.1338
B9: Mayo | D9: Obra | H9: Provida | K9: Cuprum | L9: 0.1144 | M9: 0.0194 | N9: 0.1338
B10: Junio | H10: Uno | K10: Habitat | L10: 0.1127 | M10: 0.0194 | N10: 0.1321
B11: Julio | K11: PlanVital | L11: 0.1116 | M11: 0.0194 | N11: 0.131
B12: Agosto | K12: ProVida | L12: 0.1145 | M12: 0.0194 | N12: 0.1339
B13: Septiembre | K13: Modelo | L13: 0.1077 | M13: 0.0194 | N13: 0.1271
B14: Octubre | K14: Uno | L14: 0.1069 | M14: 0.0194 | N14: 0.1263
B15: Noviembre
B16: Diciembre
